bitfinex/quotes_ETHUSD_20250129
["timestamp","ask_amount","ask_price","bid_price","bid_amount"]
[1738146012435,3.21974011,3136.9,3136.8,0.19104081]
[1738146016275,3.9724653,3137.0,3136.8,0.19104081]
[1738146017359,3.18778,3137.0,3136.8,0.19104081]
[1738146017769,4.01236,3137.2,3136.8,0.19104081]
[1738146017969,0.7862,3137.9,3137.3,0.1]
[1738146018170,3.18722,3137.6,3137.3,0.1]
[1738146018399,0.03188011,3137.5,3137.4,0.29353054]
[1738146018770,3.21910011,3137.6,3137.4,0.29353054]
[1738146019070,3.92475604,3137.6,3137.4,0.29353054]
[1738146021308,3.18725,3137.5,3137.4,0.29353054]
[1738146021703,3.21913011,3137.5,3137.4,0.29353054]
[1738146022268,3.97793011,3137.5,3137.4,0.10248973]
[1738146022691,3.18755,3137.2,3137.1,0.29104081]
[1738146022970,3.18755,3137.2,3137.1,0.39358297]
[1738146023391,0.03188011,3137.3,3137.1,0.39358297]
[1738146024576,3.21936011,3137.3,3137.1,0.39358297]
[1738146024777,3.93591112,3137.3,3137.1,0.39358297]
[1738146028630,3.21936011,3137.3,3137.1,0.39358297]
[1738146031125,3.18755,3137.2,3137.1,0.39358297]
[1738146031422,3.18755,3137.2,3137.1,0.10254216]
[1738146031591,4.00593011,3137.2,3137.1,0.10254216]
[1738146031790,3.18775,3137.0,3136.9,0.19104081]
[1738146031991,3.21963011,3137.0,3136.9,0.19104081]
[1738146032237,3.21963011,3137.0,3136.9,0.28637339]
[1738146032401,3.21963011,3137.0,3136.9,0.31968594]
[1738146033429,3.93900912,3137.0,3136.9,0.31968594]
[1738146033952,1.52705912,3137.0,3136.5,0.19104081]
[1738146034151,3.18816,3136.6,3136.5,0.19104081]
[1738146034351,3.22004011,3136.6,3136.5,0.19104081]
[1738146034541,0.03188011,3136.6,3136.5,0.19104081]
[1738146034725,3.22004011,3136.6,3136.5,0.19104081]
[1738146036318,3.22004011,3136.6,3136.2,0.7531]
[1738146036319,3.1883,3136.5,3136.3,0.19104081]
[1738146036544,0.03188011,3136.4,3136.3,0.19104081]
[1738146036743,3.22024011,3136.4,3136.3,0.19104081]
[1738146041365,3.22024011,3136.4,3136.3,0.29104081]
[1738146041570,3.22024011,3136.4,3136.3,0.19104081]
[1738146043271,4.00219162,3136.4,3136.3,0.19104081]
[1738146043464,3.18867,3136.1,3136.0,0.52847465]
[1738146043868,3.18867,3136.1,3136.0,0.65378571]
[1738146045350,3.18851,3136.3,3136.0,0.65378571]
[1738146045555,6.37706,3136.3,3136.0,0.65378571]
[1738146045952,6.37706,3136.3,3136.2,0.19104081]
[1738146046159,3.18865,3136.2,3136.0,0.52847465]
[1738146046469,3.22053011,3136.2,3136.0,0.52847465]
[1738146047482,3.18865,3136.2,3136.0,0.52847465]
[1738146047774,0.03188011,3136.2,3136.0,0.52847465]
[1738146048144,6.37706,3136.3,3136.1,0.11711799]
[1738146048589,3.18851,3136.3,3136.1,0.11711799]
[1738146048760,6.37705,3136.3,3136.1,0.11711799]
[1738146048962,3.18851,3136.3,3136.2,0.19104081]
[1738146049160,3.18851,3136.3,3136.2,0.30814025]
[1738146050394,3.18834,3136.5,3136.2,0.40814025]
[1738146050699,1.36163578,3136.9,3136.5,0.1]
[1738146050991,1.36163578,3136.9,3136.8,3.47900081]
[1738146051191,3.18742,3137.4,3137.1,0.1]
[1738146051359,3.18742,3137.4,3137.2,0.30781701]
[1738146051555,0.03188011,3137.3,3137.2,0.30781701]
[1738146051759,3.21933011,3137.3,3137.2,0.30781701]
[1738146057403,3.18745,3137.3,3137.2,0.30781701]
[1738146057794,3.21933011,3137.3,3137.2,0.30781701]
[1738146058201,3.18745,3137.3,3137.2,0.30781701]
[1738146058504,3.21933011,3137.3,3137.2,0.30781701]
[1738146058891,3.18745,3137.3,3137.2,0.30781701]
[1738146059093,3.21933011,3137.3,3137.2,0.30781701]
[1738146059801,0.16636084,3137.6,3137.3,0.1]
[1738146059999,3.18708,3137.7,3137.3,0.9141]
[1738146060189,3.18725,3137.5,3137.4,0.30713523]
[1738146061591,0.03188011,3137.6,3137.5,0.1]
[1738146061907,3.21903011,3137.6,3137.5,0.21211773]
[1738146062078,3.21903011,3137.6,3137.5,0.1]
[1738146062280,3.21903011,3137.6,3137.5,0.21211773]
[1738146062487,3.18699,3137.8,3137.5,0.1]
[1738146062691,3.18699,3137.8,3137.5,0.21211773]
[1738146062910,3.18699,3137.8,3137.5,0.1]
[1738146063213,3.18699,3137.8,3137.6,0.11208267]
[1738146063628,3.18704,3137.7,3137.6,0.11208267]
[1738146066815,3.18685,3137.9,3137.8,0.759]
[1738146067036,3.18685,3137.9,3137.8,0.87077018]
[1738146067252,3.18666,3138.1,3137.8,0.87077018]
[1738146067434,3.18678,3138.0,3137.8,0.87077018]
[1738146068648,3.18669,3138.1,3138.0,0.19104081]
[1738146068951,3.86885099,3138.2,3138.1,0.1]
[1738146069156,3.86885099,3138.2,3138.1,0.21164299]
[1738146069445,3.18654,3138.2,3138.1,0.21164299]
[1738146071052,7.00491967,3138.4,3138.2,0.19104081]
[1738146071559,3.19138,3138.4,3138.3,0.21160594]
[1738146071968,3.22326011,3138.4,3138.3,0.21160594]
[1738146072742,3.19138,3138.4,3138.3,0.1]
[1738146072915,3.19138,3138.4,3138.3,0.21160594]
[1738146073551,0.005,3138.4,3138.3,0.21160594]
[1738146073755,3.19133,3138.4,3138.3,0.21160594]
[1738146074115,0.005,3138.4,3138.3,0.21160594]
[1738146074353,0.005,3138.4,3138.3,4.75863594]
[1738146074555,0.005,3138.4,3138.3,5.57225661]
[1738146077022,0.005,3138.4,3138.3,5.60411853]
[1738146077419,0.005,3138.4,3138.3,5.57225661]
[1738146078047,0.005,3138.4,3138.3,5.60411522]
[1738146078663,0.005,3138.4,3138.3,5.57225661]
[1738146080264,0.005,3138.4,3138.3,5.60411725]
[1738146080717,0.005,3138.4,3138.3,5.57225661]
[1738146081180,0.005,3138.4,3138.3,5.60411725]
[1738146081386,0.005,3138.4,3138.3,8.60411725]
[1738146081582,0.005,3138.4,3138.3,8.57225661]
[1738146097130,0.005,3138.4,3138.3,8.80967009]
[1738146098737,0.1612313,3138.9,3138.8,4.29437081]
[1738146098938,0.1612313,3138.9,3138.8,5.59240989]
[1738146099246,0.1612313,3138.9,3138.8,5.73390011]
[1738146100051,0.1612313,3138.9,3138.8,8.73390011]
[1738146100255,0.1612313,3138.9,3138.8,8.70204821]
[1738146100459,0.1612313,3138.9,3138.8,8.93946169]
[1738146101242,1.3e-06,3138.9,3138.8,8.93946169]
[1738146102219,0.79428011,3140.6,3140.4,0.1]
[1738146102556,3.9467,3140.4,3140.3,0.19104081]
[1738146102761,3.97858011,3140.4,3140.3,0.19104081]
[1738146103465,3.9467,3140.4,3140.3,0.19104081]
[1738146103612,3.97858011,3140.4,3140.3,0.19104081]
[1738146103946,4.69485812,3140.4,3140.3,0.19104081]
[1738146104646,4.66297801,3140.4,3140.3,0.19104081]
[1738146105019,0.7624,3140.4,3140.3,0.74104081]
[1738146105218,0.63599553,3140.5,3140.4,0.65]
[1738146105449,0.7514,3140.6,3140.5,0.74104081]
[1738146105640,3.18365,3141.1,3140.8,0.19104081]
[1738146105641,0.8081,3140.9,3140.8,0.19104081]
[1738146106352,0.63032041,3141.0,3140.9,0.55]
[1738146106742,0.8081,3141.2,3141.0,0.19104081]
[1738146106914,1.207239,3141.2,3141.0,0.19104081]
[1738146107112,0.399139,3141.2,3141.1,0.65]
[1738146107312,0.7919,3141.5,3141.4,0.1]
[1738146107541,0.7919,3141.5,3141.4,0.65]
[1738146107745,4.00697011,3141.5,3141.4,0.1]
[1738146107943,3.18329,3141.4,3141.3,0.19104081]
[1738146108351,3.21517011,3141.4,3141.3,0.29830725]
[1738146108649,3.90231601,3141.4,3141.3,0.19104081]
[1738146108850,3.90231601,3141.4,3141.3,0.29830725]
[1738146109018,3.90231601,3141.4,3141.3,0.39830725]
[1738146109329,0.71902601,3141.4,3141.3,0.39830725]
[1738146109655,3.90231601,3141.4,3141.3,0.39830725]
[1738146110073,4.1003444,3141.4,3141.3,0.10726644]
[1738146110245,4.1003444,3141.4,3141.3,0.29830725]
[1738146110552,3.18349,3141.2,3141.1,0.29104081]
[1738146110874,3.91187344,3141.2,3141.1,0.39745156]
[1738146112570,3.91187344,3141.2,3141.1,0.29745156]
[1738146112738,4.66917344,3141.2,3141.1,0.29745156]
[1738146112935,4.66917344,3141.2,3141.1,0.10641075]
[1738146113155,3.1839,3140.8,3140.7,0.29104081]
[1738146113467,4.139048,3140.8,3140.7,0.19104081]
[1738146113654,4.933448,3140.8,3140.7,0.19104081]
[1738146114664,3.1843,3140.4,3140.3,0.84104081]
[1738146115032,3.18418,3140.6,3140.3,0.84104081]
[1738146115238,3.18418,3140.6,3140.5,0.19104081]
[1738146115443,4.01011,3140.2,3140.1,0.19104081]
[1738146116141,4.04199011,3140.2,3140.1,0.19104081]
[1738146119330,0.03188011,3140.2,3140.1,0.74104081]
[1738146119535,3.18439,3140.4,3140.3,0.29104081]
[1738146120178,3.18439,3140.4,3140.3,0.19104081]
[1738146120370,3.8889717,3140.4,3140.3,0.19104081]
[1738146120560,3.8889717,3140.4,3140.1,0.29104081]
[1738146120887,3.96381,3140.2,3140.1,0.29104081]
[1738146121083,3.96381,3140.2,3140.1,0.19104081]
[1738146121376,3.18471,3140.0,3139.9,0.29104081]
[1738146122475,3.90275001,3140.0,3139.9,0.29104081]
[1738146123273,3.90275001,3140.0,3139.9,0.39468394]
[1738146123636,3.90275001,3140.0,3139.9,0.29468394]
[1738146123842,3.18501,3139.7,3139.6,0.19104081]
[1738146124152,3.21689011,3139.7,3139.6,0.29473946]
[1738146124562,3.85707012,3139.7,3139.6,0.29473946]
[1738146125198,4.66157012,3139.7,3139.6,0.29473946]
[1738146125484,4.62969001,3139.7,3139.6,0.19104081]
[1738146125979,4.62969001,3139.7,3139.3,0.19104081]
[1738146126168,3.18532,3139.4,3139.3,0.19104081]
[1738146126369,3.85425411,3139.4,3139.3,0.19104081]
[1738146126979,3.822374,3139.4,3139.3,0.19104081]
[1738146127280,3.18532,3139.4,3139.3,0.29521277]
[1738146128267,3.21720011,3139.4,3139.3,0.10417196]
[1738146128602,3.21720011,3139.4,3139.0,0.1]
[1738146128603,3.18562,3139.1,3139.0,0.1]
[1738146128892,3.18562,3139.1,3139.0,0.20077442]
[1738146129455,3.18562,3139.1,3139.0,0.1]
[1738146129661,3.18562,3139.1,3139.0,0.20077442]
[1738146134300,3.822734,3139.1,3139.0,0.20077442]
[1738146135206,3.85461411,3139.1,3139.0,0.20077442]
[1738146135369,3.85461411,3139.1,3139.0,0.1]
[1738146135569,3.85461411,3139.1,3139.0,0.20077442]
[1738146137162,3.822734,3139.1,3139.0,0.20077442]
[1738146137367,3.18562,3139.1,3139.0,0.20077442]
[1738146138680,3.81773359,3139.4,3139.2,0.29104081]
[1738146139006,0.63235359,3139.4,3139.3,0.10071887]
[1738146139369,0.63235359,3139.4,3139.2,0.29104081]
[1738146139584,0.63235359,3139.4,3139.3,0.10117537]
[1738146139973,0.63235359,3139.4,3139.2,0.29104081]
[1738146140205,0.63235359,3139.4,3139.3,0.10117537]
[1738146140508,0.63235359,3139.4,3139.2,0.29104081]
[1738146140709,3.81769359,3139.4,3139.3,0.10117537]
[1738146141112,3.81769359,3139.4,3139.2,0.29104081]
[1738146141313,0.63235359,3139.4,3139.3,0.65117537]
[1738146142409,3.18504,3139.7,3139.3,1.47017537]
[1738146142711,3.18504,3139.7,3139.6,0.19104081]
[1738146143008,3.18504,3139.7,3139.6,0.29104081]
[1738146143212,3.18504,3139.7,3139.6,0.39216065]
[1738146145715,3.21692011,3139.7,3139.6,0.10111984]
[1738146146013,3.999138,3139.7,3139.6,0.10111984]
[1738146146181,3.999108,3139.7,3139.6,0.19104081]
[1738146146377,0.814098,3139.7,3139.4,0.19104081]
[1738146146595,3.999108,3139.7,3139.5,0.10113835]
[1738146146789,3.18511,3139.6,3139.5,0.10113835]
[1738146147018,4.23864865,3139.6,3139.5,0.10113835]
[1738146147326,3.18522,3139.5,3139.4,0.19104081]
[1738146147532,3.97052,3139.5,3139.4,0.19104081]
[1738146147732,4.00240011,3139.5,3139.4,0.29104081]
[1738146148431,4.00240011,3139.5,3139.4,0.19104081]
[1738146148732,4.87284667,3139.5,3139.4,0.29104081]
[1738146149025,4.90472678,3139.5,3139.4,0.29104081]
[1738146149232,4.90472678,3139.5,3139.4,0.39219767]
[1738146149917,3.18522,3139.5,3139.4,0.39219767]
[1738146151749,3.21710011,3139.5,3139.4,0.39219767]
[1738146152043,3.18522,3139.5,3139.4,0.39219767]
[1738146152848,3.21710011,3139.5,3139.4,0.39219767]
[1738146154334,3.18522,3139.5,3139.4,0.39219767]
[1738146156141,3.1851,3139.7,3139.4,0.39219767]
[1738146156314,3.1851,3139.7,3139.6,0.29104081]
[1738146156513,3.1851,3139.7,3139.6,0.39200111]
[1738146158063,3.18498,3139.8,3139.6,0.39200111]
[1738146160521,3.18456,3140.2,3140.0,0.1]
[1738146160753,3.18456,3140.2,3140.1,0.29229347]
[1738146163227,3.18441,3140.3,3140.2,0.1]
[1738146163420,3.18428,3140.5,3140.4,0.29104081]
[1738146163877,6.36811,3140.7,3140.6,0.1]
[1738146164053,6.36811,3140.7,3140.6,0.29104081]
[1738146164241,3.18402,3140.7,3140.6,0.39165655]
[1738146165565,3.83194144,3140.7,3140.6,0.39165655]
[1738146171374,3.18402,3140.7,3140.6,0.39165655]
[1738146176361,3.18393,3140.8,3140.6,0.39165655]
[1738146177262,3.18376,3141.0,3140.9,0.29104081]
[1738146177585,3.18376,3141.0,3140.9,0.39112279]
[1738146178186,3.8337405,3141.2,3141.1,0.19104081]
[1738146178587,3.8337405,3141.2,3141.1,0.29104081]
[1738146178793,3.86562061,3141.2,3141.1,0.29104081]
[1738146179788,3.86562061,3141.2,3141.1,0.1]
[1738146179994,3.86562061,3141.2,3141.1,0.29104081]
[1738146180151,3.86562061,3141.2,3141.1,0.39095939]
[1738146180355,4.03178598,3141.2,3141.1,0.39095939]
[1738146180989,4.03178598,3141.2,3141.1,0.19991858]
[1738146181159,4.83494358,3141.2,3141.1,0.29104081]
[1738146181790,4.83494358,3141.2,3140.6,0.7889]
[1738146181791,3.9406,3140.9,3140.8,0.19104081]
[1738146181991,3.97248011,3140.9,3140.8,0.19104081]
[1738146182490,3.97248011,3140.9,3140.4,0.29104081]
[1738146182491,3.1842,3140.5,3140.4,0.29104081]
[1738146182692,3.1842,3140.5,3140.4,0.39109436]
[1738146182912,3.21608011,3140.5,3140.4,0.39109436]
[1738146183062,3.1842,3140.5,3140.4,0.39109436]
[1738146183264,3.21608011,3140.5,3140.4,0.39109436]
[1738146183561,3.1842,3140.5,3140.4,0.39109436]
[1738146185194,1.61957347,3141.2,3141.1,0.29104081]
[1738146185195,0.6502505,3141.2,3141.1,0.29104081]
[1738146185356,3.18312,3141.6,3141.5,0.1]
[1738146185690,3.18292,3141.8,3141.7,0.19104081]
[1738146185992,3.18292,3141.8,3141.7,0.29095838]
[1738146186163,3.81984602,3141.8,3141.7,0.29095838]
[1738146186362,3.18292,3141.8,3141.7,0.39095838]
[1738146186758,6.5267213,3142.0,3141.7,0.29095838]
[1738146186964,4.62166613,3141.8,3141.7,0.29095838]
[1738146187172,4.62166613,3141.8,3141.7,0.09991757]
[1738146187374,3.18319,3141.5,3141.4,0.29104081]
[1738146187579,3.21507011,3141.5,3141.4,0.29104081]
[1738146187871,3.21507011,3141.5,3141.4,0.39016207]
[1738146188191,3.21507011,3141.5,3141.4,0.29016207]
[1738146188410,3.85488612,3141.5,3141.4,0.09912126]
[1738146188575,3.18359,3141.1,3141.0,0.19104081]
[1738146188762,4.01607011,3141.1,3141.0,0.19104081]
[1738146189269,3.98419,3141.1,3141.0,0.29027449]
[1738146189470,3.18359,3141.1,3141.0,0.29027449]
[1738146189676,3.18324,3141.5,3141.4,0.1]
[1738146190104,3.18324,3141.5,3141.4,0.19925312]
[1738146192694,3.13324,3141.5,3141.4,0.19925312]
[1738146194293,3.16512011,3141.5,3141.4,0.09925312]
[1738146194567,3.18339,3141.3,3141.2,0.29104081]
[1738146194791,3.21527011,3141.3,3141.2,0.29104081]
[1738146194979,3.21527011,3141.3,3141.2,0.39029794]
[1738146195509,3.18339,3141.3,3141.2,0.29029794]
[1738146195710,3.18339,3141.3,3141.2,0.19104081]
[1738146196014,4.64953811,3141.3,3141.2,0.19104081]
[1738146196217,1.46614811,3141.3,3141.0,0.29104081]
[1738146196418,3.18359,3141.1,3141.0,0.29104081]
[1738146196585,3.21547011,3141.1,3141.0,0.29104081]
[1738146197504,0.8154,3141.0,3140.1,0.29104081]
[1738146197682,3.18451,3140.2,3140.1,0.29104081]
[1738146198099,3.18451,3140.2,3140.1,0.37402674]
[1738146198100,3.21639011,3140.2,3140.1,0.37402674]
[1738146202118,0.04263993,3140.1,3139.7,0.7971]
[1738146202419,3.18482,3139.9,3139.8,0.08027525]
[1738146202620,3.21670011,3139.9,3139.8,0.08027525]
[1738146202825,3.18506,3139.7,3139.4,0.7587]
[1738146203025,3.21694011,3139.7,3139.4,0.7587]
[1738146203191,3.18506,3139.7,3139.4,0.7587]
[1738146203936,3.18512,3139.6,3139.4,0.7587]
[1738146204094,0.03188011,3139.6,3139.4,0.7587]
[1738146204291,3.21703011,3139.6,3139.4,0.7587]
[1738146204490,3.21703011,3139.6,3139.1,1.3345]
[1738146205122,3.21703011,3139.6,3139.1,4.52012]
[1738146205330,3.18515,3139.6,3139.1,4.52012]
[1738146205606,4.00609,3139.8,3139.3,0.55]
[1738146205805,3.18503,3139.7,3139.3,0.55]
[1738146209722,3.18503,3139.7,3139.4,0.081674]
[1738146213304,3.18522,3139.5,3139.4,0.081674]
[1738146213504,0.82968011,3139.6,3138.8,0.55]
[1738146213801,6.3712,3139.2,3138.9,0.07784235]
[1738146214426,3.1856,3139.2,3138.9,0.07784235]
[1738146214933,3.18572,3139.0,3138.9,0.07784235]
[1738146215140,3.18572,3139.0,3138.7,0.7624]
[1738146215432,3.21775011,3138.9,3138.8,0.07786087]
[1738146215826,3.21775011,3138.9,3138.7,0.7624]
[1738146216021,3.21775011,3138.9,3138.8,0.07786087]
[1738146216737,3.21775011,3138.9,3138.7,0.7624]
[1738146216944,3.21775011,3138.9,3138.8,0.07786087]
[1738146217238,3.21775011,3138.9,3138.7,0.7624]
[1738146217421,3.21775011,3138.9,3138.8,0.07786087]
[1738146217627,3.18587,3138.9,3138.8,0.07786087]
[1738146217835,3.18587,3138.9,3138.7,0.7624]
[1738146218035,3.18558,3139.2,3138.8,0.07786087]
[1738146218235,3.18574,3139.0,3138.8,0.07786087]
[1738146218443,3.18574,3139.0,3138.7,0.7624]
[1738146218735,3.18574,3139.0,3138.8,0.07786087]
[1738146218949,3.18574,3139.0,3138.7,0.7624]
[1738146219116,3.18574,3139.0,3138.8,0.07786087]
[1738146219441,0.03188011,3138.9,3138.7,0.7624]
[1738146220138,3.18574,3139.0,3138.7,0.7624]
[1738146222748,0.65192573,3139.1,3138.7,0.7624]
[1738146222950,0.65192573,3139.1,3138.7,3.7624]
[1738146222951,3.83755573,3139.1,3138.7,3.7624]
[1738146223140,3.18563,3139.1,3138.7,3.7624]
[1738146223752,3.18573,3139.0,3138.7,3.7624]
[1738146224656,6.37118,3139.2,3138.7,3.7624]
[1738146224821,3.18565,3139.1,3138.7,3.7624]
[1738146225220,3.18557,3139.2,3138.8,0.55]
[1738146225556,3.83662362,3139.2,3138.8,0.55]
[1738146226466,3.83662362,3139.2,3138.8,3.73592]
[1738146227460,6.37075,3139.4,3139.0,0.55]
[1738146227632,3.18537,3139.4,3139.0,0.55]
[1738146228144,3.18537,3139.4,3139.1,0.07849277]
[1738146229963,3.18543,3139.3,3139.1,0.07849277]
[1738146230863,3.18537,3139.4,3139.1,0.07849277]
[1738146231262,6.37079,3139.4,3139.1,0.07849277]
[1738146231465,3.18537,3139.4,3139.1,0.07849277]
[1738146231767,6.37076,3139.4,3139.1,0.07849277]
[1738146232280,3.18537,3139.4,3139.1,0.07849277]
[1738146232581,6.37076,3139.4,3139.1,0.07849277]
[1738146233674,3.18537,3139.4,3139.1,0.07849277]
[1738146233879,6.37077,3139.4,3139.1,0.07849277]
[1738146234578,6.37075,3139.4,3139.1,0.07849277]
[1738146234769,6.37075,3139.4,3139.2,0.7626]
[1738146234970,6.37075,3139.4,3139.3,0.07840624]
[1738146235159,6.37075,3139.4,3139.2,0.7626]
[1738146235359,6.37075,3139.4,3139.3,0.07840624]
[1738146235570,6.37075,3139.4,3139.2,0.7626]
[1738146235880,3.18537,3139.4,3139.3,0.07840624]
[1738146236283,6.37076,3139.4,3139.2,0.7626]
[1738146236447,3.18537,3139.4,3139.3,0.07840624]
[1738146236778,6.37076,3139.4,3139.2,0.7626]
[1738146236981,6.37076,3139.4,3139.3,0.07840624]
[1738146237157,6.37076,3139.4,3139.2,0.7626]
[1738146237361,6.37076,3139.4,3139.3,0.07840624]
[1738146237559,3.18542,3139.3,3139.2,0.7626]
[1738146237792,3.18542,3139.3,3139.2,0.83844324]
[1738146239582,3.18542,3139.3,3139.2,0.07584324]
[1738146239760,3.18542,3139.3,3139.0,1.3576]
[1738146239960,3.18542,3139.3,3139.1,0.07586176]
[1738146241589,3.18549,3139.3,3139.1,0.07586176]
[1738146242809,3.18552,3139.2,3139.1,0.07586176]
[1738146243092,3.21740011,3139.2,3139.1,0.07586176]
[1738146243256,3.18576,3139.0,3138.8,0.7878]
[1738146243451,3.13576,3139.0,3138.8,0.7878]
[1738146243675,3.13576,3139.0,3138.6,0.8243]
[1738146244282,3.13576,3139.0,3138.7,0.55]
[1738146244483,3.13576,3139.0,3138.7,0.84758279]
[1738146245859,3.13576,3139.0,3138.7,3.84758279]
[1738146246655,3.18557,3139.2,3138.8,0.29758279]
[1738146246656,3.18569,3139.1,3138.8,0.29758279]
[1738146246863,3.18579,3139.0,3138.8,0.29758279]
[1738146248328,3.18558,3139.2,3138.8,0.29758279]
[1738146248478,3.18558,3139.2,3138.7,3.73601]
[1738146249633,3.18558,3139.2,3138.7,4.810658]
[1738146249838,1.39699762,3139.6,3138.8,0.7559]
[1738146250138,3.18553,3139.2,3138.8,0.7559]
[1738146250638,3.1855,3139.3,3138.8,0.7559]
[1738146250931,3.18553,3139.2,3138.8,0.7559]
[1738146252294,3.18553,3139.2,3138.9,0.29755178]
[1738146252496,3.18533,3139.4,3139.0,0.55]
[1738146253414,4.58217762,3139.6,3139.1,3.18558]
[1738146253614,3.18523,3139.5,3139.1,0.55]
[1738146254912,3.18564,3139.1,3138.8,0.7559]
[1738146255283,3.18576,3139.0,3138.8,0.7559]
[1738146255688,3.18564,3139.1,3138.8,0.7559]
[1738146258026,3.18564,3139.1,3139.0,0.55]
[1738146258395,3.18564,3139.1,3139.0,0.62609482]
[1738146263633,3.21752011,3139.1,3139.0,0.07609482]
[1738146263796,4.725846,3139.1,3139.0,0.07609482]
[1738146264002,3.18608,3138.7,3138.2,3.18647]
[1738146264295,3.18608,3138.7,3138.2,6.37296]
[1738146264622,3.18608,3138.7,3138.3,0.55]
[1738146265225,3.18608,3138.7,3138.5,0.55]
[1738146267435,3.18608,3138.7,3138.3,0.55]
[1738146269912,3.18608,3138.7,3138.5,0.55]
[1738146271845,3.18608,3138.7,3138.3,0.55]
[1738146272154,3.18608,3138.7,3138.3,3.73643]
[1738146272464,3.18608,3138.7,3138.3,4.51436321]
[1738146273119,3.18608,3138.7,3138.5,0.55]
[1738146273323,3.18608,3138.7,3138.6,0.62649353]
[1738146274222,7.02383121,3138.9,3138.6,0.62649353]
[1738146274542,3.18593,3138.8,3138.6,0.62649353]
[1738146275144,0.65205121,3138.9,3138.7,0.55]
[1738146275426,3.18564,3139.1,3138.7,0.62666209]
[1738146276223,3.18564,3139.1,3138.7,3.81268209]
[1738146276442,3.18554,3139.2,3138.7,3.81268209]
[1738146278753,3.18562,3139.1,3138.7,3.81268209]
[1738146279359,3.18562,3139.1,3138.7,0.62666209]
[1738146280559,6.37131,3139.1,3138.7,0.62666209]
[1738146280763,3.18562,3139.1,3138.7,0.62666209]
[1738146281770,3.18562,3139.1,3138.7,3.81268209]
[1738146281931,3.18562,3139.1,3138.7,4.5912533]
[1738146283460,3.18562,3139.1,3138.7,1.4052333]
[1738146283661,3.18562,3139.1,3138.7,0.62666209]
[1738146283973,3.18562,3139.1,3138.9,0.55]
[1738146284336,3.18562,3139.1,3139.0,0.6263259]
[1738146286335,3.21750011,3139.1,3139.0,0.6263259]
[1738146286539,3.18562,3139.1,3139.0,0.6263259]
[1738146286941,3.21750011,3139.1,3139.0,0.6263259]
[1738146287242,3.18562,3139.1,3139.0,0.6263259]
[1738146287450,3.21750011,3139.1,3139.0,0.6263259]
[1738146288255,3.18562,3139.1,3139.0,0.6263259]
[1738146293851,3.21750011,3139.1,3139.0,0.6263259]
[1738146294056,4.10712172,3139.1,3139.0,0.0763259]
[1738146294443,4.10712172,3139.1,3138.7,0.29743105]
[1738146294444,3.18593,3138.8,3138.7,0.29743105]
[1738146294644,3.18593,3138.8,3138.5,0.7868]
[1738146294866,3.18593,3138.8,3138.6,0.55]
[1738146296485,0.1662796,3139.1,3137.9,4.24008973]
[1738146296486,0.03188011,3138.9,3137.9,4.24008973]
[1738146296778,3.18625,3138.5,3138.0,3.99357]
[1738146296978,3.18625,3138.5,3138.1,3.0]
[1738146297343,3.21825011,3138.4,3138.0,0.8069]
[1738146297946,3.18637,3138.4,3138.3,0.55]
[1738146298145,3.21825011,3138.4,3138.3,0.55]
[1738146298855,3.18625,3138.5,3138.3,0.55]
[1738146299378,3.18625,3138.5,3138.1,0.55]
[1738146300773,0.7752,3138.4,3138.0,0.55]
[1738146300996,3.18645,3138.3,3138.0,0.55]
[1738146301474,3.18645,3138.3,3137.9,0.55]
[1738146301643,3.18645,3138.3,3137.7,5.03368973]
[1738146301840,3.18645,3138.3,3137.7,3.98037]
[1738146302087,6.37295,3138.3,3137.8,0.55]
[1738146302379,3.18656,3138.2,3137.8,0.84732149]
[1738146302939,3.18656,3138.2,3137.8,4.03426149]
[1738146303144,3.18644,3138.3,3137.9,0.06909313]
[1738146303368,3.18644,3138.3,3138.0,0.55]
[1738146303568,3.18644,3138.3,3138.0,0.6190746]
[1738146305643,3.9616,3138.4,3138.0,0.6190746]
[1738146305848,0.7752,3138.4,3138.0,0.6190746]
[1738146306049,3.96154,3138.4,3138.0,0.6190746]
[1738146306660,3.18645,3138.3,3138.0,0.6190746]
[1738146308181,6.37297,3138.3,3138.0,0.6190746]
[1738146308478,3.18654,3138.2,3138.0,0.6190746]
[1738146311475,3.96161,3138.4,3138.0,0.6190746]
[1738146311788,3.18644,3138.3,3138.0,0.6190746]
[1738146314164,6.37296,3138.3,3138.0,0.6190746]
[1738146314370,3.18662,3138.2,3138.0,0.6190746]
[1738146315290,3.18644,3138.3,3138.0,0.6190746]
[1738146315484,3.18654,3138.2,3138.0,0.6190746]
[1738146316356,3.18664,3138.1,3138.0,0.6190746]
[1738146316551,3.21852011,3138.1,3138.0,0.6190746]
[1738146317587,3.21852011,3138.1,3138.0,0.0690746]
[1738146317790,3.18677,3138.0,3137.7,0.29710576]
[1738146318160,3.18677,3138.0,3137.8,0.61946885]
[1738146319796,3.18654,3138.2,3137.8,0.61946885]
[1738146319994,0.16632834,3138.3,3137.8,0.61946885]
[1738146320200,3.18645,3138.3,3138.0,0.55]
[1738146320790,3.18645,3138.3,3137.9,0.88050862]
[1738146320791,0.65283186,3138.6,3138.2,0.55]
[1738146321212,4.54763578,3138.8,3138.2,0.55]
[1738146321213,1.36163578,3138.8,3138.4,3.73627]
[1738146321413,1.36163578,3138.8,3138.7,0.55]
[1738146321577,3.18547,3139.3,3138.9,0.55]
[1738146321777,3.18554,3139.2,3138.9,0.55]
[1738146321987,3.18554,3139.2,3139.0,0.06940593]
[1738146322558,0.6491228,3139.3,3139.1,0.55]
[1738146322758,0.6491228,3139.3,3139.2,0.61920952]
[1738146323129,0.7757,3139.9,3139.3,0.55]
[1738146323270,1.36163578,3140.2,3139.3,0.55]
[1738146323271,3.18499,3139.8,3139.4,0.7814]
[1738146323469,3.18499,3139.8,3139.4,0.85041315]
[1738146324409,3.81312396,3139.8,3139.4,0.85041315]
[1738146325569,3.18502,3139.7,3139.4,0.85041315]
[1738146328470,3.81305396,3139.8,3139.4,0.85041315]
[1738146328668,0.62813396,3139.8,3139.4,0.85041315]
[1738146328870,3.81306396,3139.8,3139.4,0.85041315]
[1738146330482,3.18502,3139.7,3139.4,0.85041315]
[1738146331178,0.62813396,3139.8,3139.5,0.55]
[1738146331385,0.62813396,3139.8,3139.7,0.55]
[1738146331585,3.18461,3140.1,3139.7,0.55]